Workbook

Sheet SUE overview table
A1: COST ANALYSIS SUMMARY
A2: Purpose: This worksheet is intended to provide an estimated production cost of the fuel using the proposed technology. The total calculated value will be based on cost estimates provided by the applicant for converting electricity into fuel, transporting for 1000 miles, storing the fuel, and converting it back to electricity. Fields higlighted in blue need to be filled in by the applicant or selected from a dropdown menu, while orange fields will automatically be populated based on the data provided. If proposing to either "Category 1", "Category 2", or "Category 1&2 combined", then fill out the appropriate sheet in this workbook. When entering the final value in that spreadsheet, the values in this sheet will highlight yellow and change the SUE accordingly.
A4: PI institution
A5: Control number
B7: Input cells | C7: blue shaded cells require manual input
B8: Input cells | C8: Do not change values in yellow cells
B9: Output cells | C9: Do not change formulas in green cells
B11: Category 1&2
B12: Ammonia | C12: Indicate here which category you are proposing to from dropdown
A13: Fuel type: | B13: Liquified gas
A14: Energy density, kWh/L | B14: 4.25
A15: Density, g/cm3
A16: Fuel conversion method | B16: Fuel cell
E18: *Same values as Table 3 of FOA, all units must be in $/kWh | F18: CF | G18: Conversion efficiency | H18: CC
A19: SUE | B19: =((B21+B22+B23)/B24)+B25 -> 0.05048128342 | C19: =((CF+CT+CS)/η)+CC in $/kWh
E20: Ammonia | F20: =(IF($B$12=E20,'Fuel production cost (cat. 1a)'!B2,0.128))+(IF($B$12=E20,'Fuel production cost (cat. 1b)'!B2,0)) -> 0 | G20: ='Reference and suggested values'!B33 -> 0.55 | H20: ='H2 production cost (cat. 2a)'!B2+' Fuel conversion cost (cat. 2b)'!B2 -> 0
A21: CF | B21: =IF(B11="Category 1",IF(B12="Ammonia",F20,IF(B12="gasoline",F21,F22)),IF(B11="Category 1&2",IF(B12="Ammonia",F20,IF(B12="gasoline",F21,F22)),IF(B11="Category 2",IF(B12="Ammonia",F20,IF(B12="gasoline",F21,F22))))) -> 0 | C21: Cost of fuel production | E21: gasoline | F21: =IF($B$12=E21,'Fuel production cost (cat. 1a)'!B2,0.09)+IF($B$12=E21,'Fuel production cost (cat. 1b)'!B2) -> 0.09 | G21: ='Reference and suggested values'!B34 -> 0.3 | H21: ='H2 production cost (cat. 2a)'!B2+' Fuel conversion cost (cat. 2b)'!B2 -> 0
A22: CT | B22: =IF(B13="Liquified gas",'Reference and suggested values'!B14/'SUE overview table'!B14,'Reference and suggested values'!B13/'SUE overview table'!B14) -> 0.01341176471 | C22: Transportation cost | E22: Other
A23: CS | B23: =IF(B13="Liquified gas",'Reference and suggested values'!B18/'SUE overview table'!B14,'Reference and suggested values'!B17/'SUE overview table'!B14) -> 0.01435294118 | C23: Storage cost | E23: *If selecting 'Other', then enter your own values in blue cells. Do not edit cells otherwise
A24: η | B24: =IF(B16="Fuel Cell",'Reference and suggested values'!B33,'Reference and suggested values'!B34) -> 0.55 | C24: Efficiency of fuel conversion
A25: CC | B25: =IF(B12="Ammonia",H20,IF(B12="gasoline",H21,H22)) -> 0 | C25: Cost of fuel conversion
H27: Category 1
H28: Category 2
H29: Category 1&2

Sheet Fuel production cost (cat. 1a)
B1: CF
A2: Total fuel production cost | C2: $/kWh | D2: Sum of capital cost (B26) and + OPEX(B22). Enter value manually
A4: Fuel selected | B4: ='SUE overview table'!B12 -> Ammonia
C6: Units | D6: Explanation and reference for each input
A7: Inputs | D7: *can include additional inputs as needed
A8: Energy input | B8: 150 | C8: MW
A9: Electricity delivery method | B9: Solar Thermal | D9: select from dropdown
A10: Capacity factor | B10: =LOOKUP(B9,'Reference and suggested values'!A8:A10,'Reference and suggested values'!B8:B10) -> 0.227 | D10: Populated from "References and suggested values" sheet
A11: Process output | B11: =B8*24*B10*1000*B20 -> 0 | C11: kWh/day
A12: Feedstock 1 | B12: N2 or CO2
A13: Feedstock 1 cost | C13: $/kg | D13: ex. Cost of N2 from air separation unit, or hydrogen or water from desalination plant
A14: Feedstock 1 cost | C14: $/kWh fuel
A15: Feedstock 2 | B15: H2
A16: Feedstock 2 cost | C16: $/kg
A17: Feedstock 2 cost | C17: $/kWh fuel
A18: Electricity cost | B18: 0.05 | C18: $/kWh | D18: 0.05 $/kWh Do not change.
A19: Theoretical energy requirement | C19: kWh/kWh fuel | D19: Calculate based on thermodynamics of the production of fuel from water and air.
A20: Fuel production efficiency | C20: %
A21: Energy cost | B21: =B19/B20*B18 ->  | D21: The formula in cell B21 was changed to include the electricity cost multiplier
A22: Total material cost (OPEX) | C22: $/kWh | D22: Feedstock 1 + Feedstock 2 + Energy (i.e. all consumables)
A23: Capital Cost | C23: $/kW | D23: The formula in cell B23 was removed and the cell color changed to blue indicating that input from the applicant is required
A24: O&M cost | B24: =B23*0.1 -> 0 | C24: $/kW | D24: Assumed 10% of Capital Cost
A25: Projected lifetime of equipment | B25: 25 | C25: years | D25: 25 years is the default value
A26: Levelized capital cost of fuel production | B26: =(B23+B24)/B25/8000/B10 -> 0 | C26: $/kWh

Sheet Fuel production cost (cat. 1b)
B1: CF
A2: Total fuel production cost | C2: $/kWh | D2: Sum of capital cost (B26) and + OPEX(B22). Enter value manually
A4: Fuel selected | B4: ='SUE overview table'!B12 -> Ammonia
C6: Units | D6: Explanation and reference for each input
A7: Inputs | D7: *can include additional inputs as needed
A8: Energy input | B8: 150 | C8: MW
A9: Electricity delivery method | B9: Solar Thermal | D9: select from dropdown
A10: Capacity factor | B10: =LOOKUP(B9,'Reference and suggested values'!A8:A10,'Reference and suggested values'!B8:B10) -> 0.227 | D10: Populated from "References and suggested values" sheet
A11: Process output | B11: =B8*24*B10*1000*B20 -> 0 | C11: kWh/day
A12: Feedstock 1 | B12: N2 or CO2
A13: Feedstock 1 cost | C13: $/kg | D13: ex. Cost of N2 from air separation unit, or hydrogen or water from desalination plant
A14: Feedstock 1 cost | C14: $/kWh fuel
A15: Feedstock 2 | B15: H2
A16: Feedstock 2 cost | C16: $/kg
A17: Feedstock 2 cost | C17: $/kWh fuel
A18: Electricity cost | B18: 0.05 | C18: $/kWh | D18: 0.05 $/kWh Do not change.
A19: Theoretical energy requirement | C19: kWh/kWh fuel | D19: Calculate based on thermodynamics of the production of fuel from water and air.
A20: Fuel production efficiency | C20: %
A21: Energy cost | B21: =B19/B20 ->  | D21: The formula in cell B21 was changed to include the electricity cost multiplier
A22: Total material cost (OPEX) | C22: $/kWh | D22: Feedstock 1 + Feedstock 2 + Energy (i.e. all consumables)
A23: Capital Cost | C23: $/kW | D23: The formula in cell B23 was removed and the cell color changed to blue indicating that input from the applicant is required
A24: O&M cost | B24: =B23*0.1 -> 0 | C24: $/kW | D24: Assumed 10% of Capital Cost
A25: Projected lifetime of equipment | B25: 25 | C25: years | D25: 25 years is the default value
A26: Levelized capital cost of fuel production | B26: =(B23+B24)/B25/8000/B10 -> 0 | C26: $/kWh

Sheet H2 production cost (cat. 2a)
B1: CF
A2: Fuel conversion cost (CC) | C2: $/kWh | D2: <- This cell is tied to a formula. Enter value manually after calculating below.
A3: Efficiency | B3: 0.5 | C3: % | D3: <- This cell is tied to a formula. Enter value manually after calculating below.
A4: Fuel selected | B4: ='SUE overview table'!B12 -> Ammonia
C6: Units | D6: Explanation and reference for each input
A7: Inputs | D7: *can include additional inputs as needed
A9: Electricity cost | B9: 0.05 | C9: $/kWh | D9: 0.05 $/kWh Do not change.
A10: Fuel price, $/kg | C10: $/kg | D10: manual
A11: Fuel price, $/kWh | C11: $/kWh | D11: manual or output from Fuel production cost spreadsheet
A12: Hydrogen content | C12: weight fraction
A13: Process output | C13: kWh/day
A14: Conversion system | B14: low temp FC | D14: select from dropdown. If Other, note temperature and references.
A15: Fuel Cell costs, $/kW | B15: =LOOKUP(B14,'Reference and suggested values'!A21:A23,'Reference and suggested values'!B21:B23) -> 1600 | C15: $/kW | D15: Populated from "References and suggested values" sheet Fuel cell cost section
A16: Fuel cell power density, mW/cm2 | B16: =LOOKUP(B14,'Reference and suggested values'!A21:A23,'Reference and suggested values'!B27:B29) -> 410 | C16: mW/cm2 | D16: Populated from "References and suggested values" sheet Fuel cell powre density section
A17: Power density, mW/cm2 | B17: 300 | C17: mW/cm2
A18: Conversion efficiency | B18: 0.5 | C18: %
A19: Capital Cost at 150 MW scale | B19: =B15/B17*B16 -> 2186.666667 | C19: $/kW
A20: O&M cost | B20: =B19*0.1 -> 218.6666667 | C20: $/kW | D20: Assumed 10% of Capital Cost
A21: Cost of H2 generation | B21: =B10*B12/B18 -> 0 | C21: $/kg
A22: Capacity factor | B22: 0.65 | C22: %
A23: Projected lifetime of equipment | B23: 15 | C23: years | D23: 15 years is the default number.
A24: Levelized capital cost of H2 generation | B24: =(B19+B20)/B23/8000/B22/B18 -> 0.06167521368 | C24: $/kWh
A25: Levelized capital cost of H2 generation | B25: =B24*33.6 -> 2.072287179 | C25: $/kg
A26: Total H2 cost | B26: =B21+B25 -> 2.072287179 | C26: $/kg

Sheet Fuel conversion cost (cat. 2b)
B1: CF
A2: Fuel conversion cost (CC) | C2: $/kWh | D2: <- This cell is tied to a formula. Enter value manually after calculating below
A3: Efficiency | C3: % | D3: <- This cell is tied to a formula. Enter value manually after calculating below.
A4: Fuel selected | B4: ='SUE overview table'!B12 -> Ammonia
C6: Units | D6: Explanation and reference for each input
A7: Inputs | D7: *can include additional inputs as needed
A9: Electricity cost | B9: 0.05 | C9: $/kWh | D9: 0.05 $/kWh Do not change.
A10: Fuel price, $/kg | C10: $/kg | D10: manual
A11: Fuel price, $/kWh | C11: $/kWh | D11: manual or output from Fuel production cost spreadsheet
C12: weight fraction
A13: Process output | C13: kWh/day
A14: Conversion system | B14: low temp FC | D14: select from dropdown. If Other, note temperature and references.
A15: Fuel Cell costs, $/kW | B15: =LOOKUP(B14,'Reference and suggested values'!A21:A23,'Reference and suggested values'!B21:B23) -> 1600 | C15: $/kW | D15: Populated from "References and suggested values" sheet Fuel cell cost section
A16: Fuel cell power density, mW/cm2 | B16: =LOOKUP(B14,'Reference and suggested values'!A21:A23,'Reference and suggested values'!B27:B29) -> 410 | C16: mW/cm2 | D16: Populated from "References and suggested values" sheet Fuel cell powre density section
A17: Power density, mW/cm2 | B17: 300 | C17: mW/cm2
A18: Conversion efficiency | B18: 0.65 | C18: %
A19: Capital Cost at 150 MW scale | B19: =B15/B17*B16 -> 2186.666667 | C19: $/kW
A20: O&M cost | B20: =B19*0.1 -> 218.6666667 | C20: $/kW | D20: Assumed 10% of Capital Cost
A21: Capacity factor | B21: 0.65 | C21: %
A22: Projected lifetime of equipment | B22: 15 | C22: years | D22: 15 years is the default number.
A23: Levelized capital cost of fuel conversion | B23: =(B19+B20)/B22/8000/B21/B18 -> 0.04744247206 | C23: $/kWh

Sheet Reference and suggested values
A1: Assumptions
A3: Feedstock cost, $/ton
A4: Nitrogen from air | B4: 40 | D4: http://adgastech.com/Products/Industrial-Gas-Generators/Nitrogen-Generators/
A5: CO2 from air | B5: 250 | D5: https://static1.squarespace.com/static/51957744e4b088893b86e2f3/t/51b228f9e4b0d25a229e7ca4/1370630392913/CE-Air-Capture-FAQ.pdf
A7: Capacity factors for fuel production (directly linked to source), % | D7: (https://www.eia.gov/electricity/monthly/epm_table_grapher.cfm?t=epmt_6_07_b)
A8: PV solar | B8: 0.286
A9: Solar Thermal | B9: 0.227
A10: Wind | B10: 0.325
A12: Transportation cost, $/L | D12: https://www.iea.org/publications/freepublications/publication/FeaturedInsights_AlternativeFuel_FINAL.pdf;
A13: Liquid | B13: 0.053 | D13: http://lib.dr.iastate.edu/cgi/viewcontent.cgi?article=2119&context=etd
A14: Liquified gas | B14: 0.057
A16: Storage cost, $/L | D16: https://www.iea.org/publications/freepublications/publication/FeaturedInsights_AlternativeFuel_FINAL.pdf;
A17: Liquid | B17: 0.0026 | D17: http://lib.dr.iastate.edu/cgi/viewcontent.cgi?article=2119&context=etd
A18: Liquified gas | B18: 0.061
A20: Fuel Cell costs, $/kW
A21: high temp FC | B21: 1700 | D21: https://www.sainc.com/service/SA%202015%20Manufacturing%20Cost%20and%20Installed%20Price%20of%20Stationary%20Fuel%20Cell%20Systems.pdf)
A22: low temp FC | B22: 1600 | D22: https://www.sainc.com/service/SA%202015%20Manufacturing%20Cost%20and%20Installed%20Price%20of%20Stationary%20Fuel%20Cell%20Systems.pdf)
A23: other | D23: Note the tempearture and any references
A26: Fuel cell power density, mW/cm2 | C26: at cell voltage
A27: high temp FC | B27: 290 | C27: 0.8 | D27: https://www.sainc.com/service/SA%202015%20Manufacturing%20Cost%20and%20Installed%20Price%20of%20Stationary%20Fuel%20Cell%20Systems.pdf)
A28: low temp FC | B28: 410 | C28: 0.675 | D28: https://www.sainc.com/service/SA%202015%20Manufacturing%20Cost%20and%20Installed%20Price%20of%20Stationary%20Fuel%20Cell%20Systems.pdf)
A29: other
A32: Conversion efficiency, %
A33: Fuel cell | B33: 0.55
A34: Internal combustion engine | B34: 0.3
